[Event "Asian Amateur-ch Open 2022"]
[Site "Muscat"]
[Date "2022.10.02"]
[Round "5.28"]
[White "Al Balushi, Salim"]
[Black "Owlad, Ehsan"]
[Result "0-1"]
[ECO "A00"]
[WhiteElo "1374"]
[BlackElo "1962"]
[Annotator "TA"]
[PlyCount "54"]
[EventDate "2022.09.29"]
[EventType "swiss"]
[SourceTitle "playchess.com"]
[Source "ChessBase"]
[SourceQuality "1"]
[TimeControl "5400+30"]

{[%evp 9,54,-71,-57,-92,-74,-83,-73,-111,-100,-145,-127,-277,-276,-298,-246,-338,-292,-276,-245,-482,-490,-687,-690,-921,-346,-345,-370,-809,-208,-744,-722,-1235,-1225,-1214,-1156,-1190,-1158,-2227,-2106,-7391,-6748,-4070,-3958,-29992,-29991,-29991,-29992]} 1. d3 {[%emt 0:00:32]} d5 {[%emt 0:00:12]} 2. c3 {[%emt 0:00:29]} e5 {[%emt 0:00:15]} 3. Qc2 {[%emt 0:00:16]} Bd6 {[%emt 0:00:21]} 4. e4 {[%emt 0:00:32]} c6 {[%emt 0:00:25] [#]} 5. a4 $146 {[%emt 0:00:24]} ({Predecessor:} 5. Nf3 Nd7 6. Be2 Ngf6 7. O-O O-O 8. Nbd2 Re8 9. Re1 Nf8 10. Nf1 Ng6 11. Ng3 {½-½ (35) Korth,M (1848)-Wittmann,P (1993) Mittelfranken 2019}) 5... Ne7 {[%emt 0:00:07]} 6. Bg5 {[%emt 0:01:38] A00: Irregular Openings.} O-O {[%emt 0:00:24]} 7. Nf3 {[%emt 0:00:35]} f5 {[%emt 0:01:05]} 8. Be2 {[%emt 0:06:33] Black is better.} h6 {[%emt 0:00:36]} 9. Bh4 {[%emt 0:01:00] [#]} g5 $1 {[%emt 0:01:08]} 10. Bxg5 {[%emt 0:03:33]} hxg5 $19 {[%emt 0:00:14]} 11. Nxg5 {[%emt 0:00:12]} Ng6 {[%emt 0:00:21]} 12. h4 {[%emt 0:02:02] [#]} Nxh4 $1 {[%emt 0:05:08][%mdl 512]} 13. Rxh4 {[%emt 0:10:39]} Qxg5 {[%emt 0:00:17]} 14. g3 {[%emt 0:02:40]} (14. Rh3 f4 15. Rh2) 14... fxe4 {[%emt 0:01:33][%cal Of8f2] Strongly threatening ...Rxf2!} 15. dxe4 {[%emt 0:06:44]} (15. Rh5 $142 Qf6 16. dxe4) 15... Bc5 {[%emt 0:00:23]} 16. Rh2 {[%emt 0:10:30] [#]} Rxf2 $2 {[%emt 0:07:38]} 17. Rxf2 {[%emt 0:02:07]} Qxg3 {[%emt 0:00:11][%mdl 64] Pin. The board is on fire.} 18. Bf1 $2 {[%emt 0:10:23]} (18. Bf3 b6 19. exd5) 18... dxe4 $2 {[%emt 0:00:58]} (18... Qe3+ 19. Re2 Qg3+ 20. Kd1 $11) (18... Bg4 19. Ra3 Nd7) 19. Qd2 {[%emt 0:11:05]} (19. Qb3+ Kh8 20. Qf7 Qe3+ 21. Be2 Qc1+ 22. Bd1 Bxf2+ 23. Qxf2) 19... Kg7 {[%emt 0:05:29]} ({Inferior is} 19... Bxf2+ 20. Qxf2 Qf4 21. Nd2 $17) 20. b4 {[%emt 0:19:05]} e3 {[%emt 0:00:24]} (20... Qxf2+ $2 {too greedy.} 21. Qxf2 Bxf2+ 22. Kxf2 $19) 21. Qe2 {[%emt 0:02:30]} exf2+ {[%emt 0:04:09]} 22. Kd2 {[%emt 0:00:40]} Be7 {[%emt 0:00:28]} 23. Na3 {[%emt 0:01:07]} Bf5 {[%emt 0:00:59] ( -> ...Bg5+)} 24. Nc2 {[%emt 0:05:20]} Bg5+ {[%emt 0:00:29]} 25. Ne3 {[%emt 0:00:12]} Na6 {[%emt 0:00:52]} 26. Rd1 {[%emt 0:01:17]} Rd8+ {[%emt 0:00:24]} 27. Kc1 {[%emt 0:00:24]} Qxe3+ {[%emt 0:00:36] White did not feel at home in the position after the opening.  Weighted Error Value: White=1.78/Black=0.38} 0-1

[Event "Asian Amateur-ch Open 2022"]
[Site "Muscat"]
[Date "2022.10.02"]
[Round "5.29"]
[White "Al Nofli, Mohammed Saif"]
[Black "Salim Mohammed, Salim Al Amri"]
[Result "0-1"]
[ECO "D11"]
[WhiteElo "1370"]
[BlackElo "1952"]
[Annotator "TA"]
[PlyCount "84"]
[EventDate "2022.09.29"]
[EventType "swiss"]
[SourceTitle "playchess.com"]
[Source "ChessBase"]
[SourceQuality "1"]
[TimeControl "5400+30"]

{[%evp 12,83,24,-29,-19,-35,-33,-65,-56,-66,0,0,0,0,1,-12,-9,-28,-23,-52,-64,-54,-22,-22,0,0,0,-193,-198,-422,-370,-403,-303,-424,-436,-442,-457,-678,-646,-717,-655,-891,-773,-1106,-956,-1410,-1255,-1726,-1644,-1316,-1249,-1231,-1209,-1080,-1145,-1117,-1109,-1018,-965,-2472,-1513,-1792,-1436,-1350,-1277,-3187,-3603,-3164,-2766,-5408,-5412,-3062,-2876,-29999]} 1. d4 {[%emt 0:00:04]} d5 {[%emt 0:00:07]} 2. c4 {[%emt 0:00:23]} c6 {[%emt 0:00:03]} 3. Nf3 {[%emt 0:00:23]} Nf6 {[%emt 0:00:02]} 4. g3 {[%emt 0:00:56]} Bf5 {[%emt 0:00:15]} 5. Nc3 {[%emt 0:02:04]} e6 {[%emt 0:00:23]} 6. Bg2 {[%emt 0:00:28]} Nbd7 {[%emt 0:00:21]} 7. O-O {[%emt 0:01:31] 7.Qb3 gains popularity.} (7. Nh4 $142) 7... dxc4 $11 {[%emt 0:00:52] D11: Slav Defence: 3 Nf3 sidelines and 3...Nf6 4 e3 Bg4.} 8. Re1 {[%emt 0:00:59]} Bb4 {[%emt 0:01:19]} 9. a3 {[%emt 0:02:10]} Bxc3 {[%emt 0:00:23] Black is more active. Black is slightly better.} 10. bxc3 {[%emt 0:00:13]} O-O {[%emt 0:00:33] [#]} ({Better is} 10... Be4 $15) 11. Nh4 $146 {[%emt 0:01:54]} ({Predecessor:} 11. Nd2 Qa5 12. Bb2 Nb6 13. e4 Bg6 14. a4 Rfe8 15. Qe2 Nfd7 16. Nxc4 Nxc4 17. Qxc4 {½-½ (40) Cukrowski,F (2378)-Buchcar,T (2207) Pardubice 2022}) 11... Be4 {[%emt 0:02:03]} 12. f3 {[%emt 0:02:32]} Bg6 {[%emt 0:00:03]} 13. Nxg6 {[%emt 0:02:58]} hxg6 {[%emt 0:00:14]} 14. e4 {[%emt 0:00:35]} b5 {[%emt 0:00:08]} 15. Bg5 {[%emt 0:01:08]} Qa5 {[%emt 0:00:21]} 16. Qd2 {[%emt 0:02:34]} Nb6 {[%emt 0:00:10]} 17. f4 {[%emt 0:04:01][%cal Of4f5]} Rac8 {[%emt 0:00:06]} (17... Na4 $5 {[%cal Ra5c3]}) 18. Bxf6 {[%emt 0:10:35]} gxf6 {[%emt 0:00:30]} 19. d5 $2 {[%emt 0:00:57] Black converts the advantage convincingly.} (19. f5 $11 {and White has nothing to worry.}) 19... cxd5 $19 {[%emt 0:00:23]} 20. Qd4 {[%emt 0:01:24]} (20. f5) 20... Kg7 {[%emt 0:00:42]} 21. g4 {[%emt 0:06:40]} Na4 {[%emt 0:02:57]} 22. Re3 {[%emt 0:07:32]} dxe4 {[%emt 0:00:31]} 23. g5 {[%emt 0:01:48]} Qd8 {[%emt 0:00:05]} 24. Qxa7 {[%emt 0:02:31]} (24. gxf6+ $142 Qxf6 25. Qxf6+ Kxf6 26. Bxe4) 24... f5 {[%emt 0:00:39]} 25. Rb1 {[%emt 0:09:53]} Rc5 {[%emt 0:02:13]} 26. Bf1 {[%emt 0:07:30]} Qd6 {[%emt 0:00:27]} 27. Qa5 {[%emt 0:05:18]} Qxf4 {[%emt 0:00:16]} 28. Rbe1 {[%emt 0:01:13]} Qxg5+ {[%emt 0:00:14]} 29. Kh1 {[%emt 0:01:31]} Rh8 {[%emt 0:00:10]} 30. R3e2 {[%emt 0:03:04]} Qf4 {[%emt 0:00:03]} 31. Rg2 {[%emt 0:01:39]} Rd5 {[%emt 0:00:04] [#] White must now prevent ...Qh4.} 32. Qa7 {[%emt 0:02:43]} Nc5 {[%emt 0:00:06]} 33. Be2 {[%emt 0:02:14]} Qe5 {[%emt 0:00:07] Strongly threatening ...f4.} 34. Qe7 {[%emt 0:04:49]} Qf6 {[%emt 0:00:16]} (34... Rd7 {[#] leads to mate.} 35. Rxg6+ $3 {[%mdl 512]} Kxg6 36. Rg1+) 35. Rxg6+ {[%emt 0:01:10]} Qxg6 {[%emt 0:00:37]} 36. Rg1 {[%emt 0:00:16]} Rh6 {[%emt 0:00:15] aiming for ...f4.} 37. Rxg6+ {[%emt 0:00:56]} Kxg6 {[%emt 0:00:17]} 38. Qf8 {[%emt 0:02:09]} Nd3 {[%emt 0:00:21]} 39. Qg8+ {[%emt 0:01:30]} Kf6 {[%emt 0:00:02] ( -> ...Nf4)} 40. Qf8 {[%emt 0:01:45]} Rg6 {[%emt 0:00:04][%cal Rd3f2]} 41. Qh8+ {[%emt 0:00:17]} Ke7 {[%emt 0:00:01][%cal Rd3f2]} 42. Qh7 {[%emt 0:01:11]} Nf2# {[%emt 1:32:47] Weighted Error Value: White=1.23/Black=0.45} 0-1

[Event "Asian Amateur-ch Open 2022"]
[Site "Muscat"]
[Date "2022.10.02"]
[Round "5.30"]
[White "Al-qudaimi abdullah"]
[Black "Sharaf, Khaleel"]
[Result "0-1"]
[ECO "D11"]
[WhiteElo "1223"]
[BlackElo "1874"]
[Annotator "NA RC COMBH"]
[PlyCount "36"]
[EventDate "2022.09.29"]
[EventType "swiss"]
[SourceTitle "playchess.com"]
[Source "ChessBase"]
[SourceQuality "1"]
[TimeControl "5400+30"]

1. d4 {[%emt 0:13:03]} Nf6 {[%emt 0:06:22]} 2. Nf3 {[%emt 0:00:19]} d5 {[%emt 0:00:10]} 3. g3 {[%emt 0:00:08]} Bf5 {[%emt 0:00:10]} 4. Bg2 {[%emt 0:01:03]} h6 {[%emt 0:00:09]} 5. O-O {[%emt 0:00:15]} e6 {[%emt 0:00:06]} 6. c4 {[%emt 0:00:36]} c6 {[%emt 0:00:19]} 7. Nc3 {[%emt 0:00:17]} Be7 {[%emt 0:01:40]} 8. Bf4 {[%emt 0:00:52]} Nh5 {[%emt 0:02:21]} 9. Be5 {[%emt 0:06:06]} Nd7 {[%emt 0:01:16]} 10. Nh4 {[%emt 0:04:38]} Bxh4 {[%emt 0:03:02]} 11. gxh4 {[%emt 0:00:20]} Nxe5 {[%emt 0:00:37]} 12. dxe5 {[%emt 0:00:02]} Nf4 {[%emt 0:03:41]} 13. Qd4 {[%emt 0:09:57]} Qxh4 {[%emt 0:01:12]} 14. Qe3 {[%emt 0:01:19]} d4 {[%emt 0:01:21]} 15. Qg3 {[%emt 0:04:25]} Nxg2 {[%emt 1:15:34]} 16. Qxg7 {[%emt 0:00:53]} O-O-O {[%emt 0:00:00]} 17. Qg3 {[%emt 0:03:38]} Rhg8 {[%emt 0:00:00]} 18. Kxg2 {[%emt 0:02:07]} dxc3 {[%emt 0:00:00]} 0-1

[Event "Asian Amateur-ch Open 2022"]
[Site "Muscat"]
[Date "2022.10.02"]
[Round "5.31"]
[White "Al Yahmadi, Anas"]
[Black "Hayabik, Husain"]
[Result "0-1"]
[ECO "C56"]
[WhiteElo "1365"]
[BlackElo "1828"]
[Annotator "NA RC COMBH"]
[PlyCount "70"]
[EventDate "2022.09.29"]
[EventType "swiss"]
[SourceTitle "playchess.com"]
[Source "ChessBase"]
[SourceQuality "1"]
[TimeControl "5400+30"]

1. e4 {[%emt 0:01:43]} e5 {[%emt 0:00:06]} 2. Nf3 {[%emt 1:29:47]} Nc6 {[%emt 1:31:24]} 3. d4 {[%emt 0:00:00]} exd4 {[%emt 0:00:00]} 4. Bc4 {[%emt 0:00:00]} Nf6 {[%emt 0:00:00]} 5. e5 {[%emt 0:00:00]} d5 {[%emt 0:00:00]} 6. Bb5 {[%emt 0:00:00]} Ne4 {[%emt 0:00:00]} 7. Nxd4 {[%emt 0:00:00]} Bd7 {[%emt 0:00:00]} 8. Nxc6 {[%emt 0:00:00]} bxc6 {[%emt 0:00:00]} 9. Ba4 {[%emt 0:00:00]} Nxf2 {[%emt 0:00:00]} 10. Kxf2 {[%emt 0:00:00]} Qh4+ {[%emt 0:00:00]} 11. g3 {[%emt 0:00:00]} Bc5+ {[%emt 0:00:00]} 12. Be3 {[%emt 0:00:00]} Bxe3+ {[%emt 0:00:00]} 13. Kxe3 {[%emt 0:00:00]} Qxa4 {[%emt 0:00:00]} 14. Nc3 {[%emt 0:00:00]} Qa6 {[%emt 0:00:00]} 15. Re1 {[%emt 0:00:00]} Qb6+ {[%emt 0:00:00]} 16. Kf3 {[%emt 0:07:00]} Qxb2 {[%emt 0:07:00]} 17. Qd3 {[%emt 0:00:00]} Qb4 {[%emt 0:00:00]} 18. Rab1 {[%emt 0:00:00]} Qg4+ {[%emt 0:00:00]} 19. Kg2 {[%emt 0:00:00]} O-O {[%emt 0:00:00]} 20. a3 {[%emt 0:00:00]} Bf5 {[%emt 0:00:00]} 21. Qd2 {[%emt 0:00:00]} d4 {[%emt 0:00:00]} 22. Na2 {[%emt 0:00:00]} Be4+ {[%emt 0:00:00]} 23. Kg1 {[%emt 0:00:00]} Qf3 {[%emt 0:00:00]} 24. Rxe4 {[%emt 0:00:00]} Qxe4 {[%emt 0:00:00]} 25. Re1 {[%emt 0:00:00]} Qd5 {[%emt 0:00:00]} 26. Nb4 {[%emt 0:00:00]} Qc5 {[%emt 0:00:00]} 27. Qd3 {[%emt 0:00:00]} a5 {[%emt 0:00:00]} 28. Na2 {[%emt 0:00:00]} Rfe8 {[%emt 0:00:00]} 29. Re4 {[%emt 0:00:00]} Rad8 {[%emt 0:00:00]} 30. Kf2 {[%emt 0:00:00]} Rxe5 {[%emt 0:00:00]} 31. Rxe5 {[%emt 0:00:00]} Qxe5 {[%emt 0:00:00]} 32. c3 {[%emt 0:00:00]} Qf6+ {[%emt 0:00:00]} 33. Kg2 {[%emt 0:00:00]} dxc3 {[%emt 0:00:00]} 34. Qc4 {[%emt 0:00:00]} Rd2+ {[%emt 0:00:00]} 35. Kh1 {[%emt 0:09:30]} Qf3+ {[%emt 0:09:30]} 0-1

[Event "Asian Amateur-ch Open 2022"]
[Site "Muscat"]
[Date "2022.10.02"]
[Round "5.32"]
[White "Ali Rashed Alqemzi"]
[Black "Krishanu Sai"]
[Result "0-1"]
[ECO "E12"]
[WhiteElo "1097"]
[BlackElo "1748"]
[Annotator "NA RC COMBH"]
[PlyCount "52"]
[EventDate "2022.09.29"]
[EventType "swiss"]
[SourceTitle "playchess.com"]
[Source "ChessBase"]
[SourceQuality "1"]
[TimeControl "5400+30"]

1. d4 {[%emt 0:00:02]} Nf6 {[%emt 0:00:13]} 2. Nf3 {[%emt 0:00:05]} d5 {[%emt 0:00:06]} 3. c4 {[%emt 0:00:05]} e6 {[%emt 0:01:18]} 4. g3 {[%emt 0:00:06]} b6 {[%emt 0:00:53]} 5. cxd5 {[%emt 0:00:10]} exd5 {[%emt 0:00:22]} 6. Bg2 {[%emt 0:00:05]} Bb7 {[%emt 0:00:55]} 7. O-O {[%emt 0:00:08]} Bd6 {[%emt 0:01:21]} 8. Qc2 {[%emt 0:00:39]} O-O {[%emt 0:02:50]} 9. Nc3 {[%emt 0:00:08]} Na6 {[%emt 0:02:22]} 10. Nb5 {[%emt 0:03:35]} Be7 {[%emt 0:01:06]} 11. Bf4 {[%emt 0:00:07]} c6 {[%emt 0:01:03]} 12. Nc3 {[%emt 0:01:12]} c5 {[%emt 0:06:20]} 13. a3 {[%emt 0:18:32]} Qd7 {[%emt 0:07:31]} 14. Rfd1 {[%emt 0:10:31]} Rfd8 {[%emt 0:03:43]} 15. Ne5 {[%emt 0:30:14]} Qe6 {[%emt 1:07:57]} 16. dxc5 {[%emt 0:32:51]} g5 {[%emt 0:00:00]} 17. c6 {[%emt 0:00:00]} Bc8 {[%emt 0:00:00]} 18. Nxd5 {[%emt 0:00:00]} Nxd5 {[%emt 0:00:00]} 19. e4 {[%emt 0:00:00]} Nxf4 {[%emt 0:00:00]} 20. gxf4 {[%emt 0:00:00]} gxf4 {[%emt 0:00:00]} 21. Nf3 {[%emt 0:00:00]} Nc7 {[%emt 0:00:00]} 22. Rxd8+ {[%emt 0:00:00]} Bxd8 {[%emt 0:00:00]} 23. Rd1 {[%emt 0:00:00]} Ba6 {[%emt 0:00:00]} 24. Qc1 {[%emt 0:00:00]} Qf6 {[%emt 0:00:00]} 25. e5 {[%emt 0:00:00]} Qf5 {[%emt 0:00:00]} 26. b4 {[%emt 0:00:00]} Be2 {[%emt 0:00:00]} 0-1

[Event "Asian Amateur-ch Open 2022"]
[Site "Muscat"]
[Date "2022.10.02"]
[Round "5.33"]
[White "Al Mamari Mohammed Salim"]
[Black "Alhassan, Meshari"]
[Result "0-1"]
[ECO "B00"]
[WhiteElo "1685"]
[BlackElo "1372"]
[Annotator "NA RC COMBH"]
[PlyCount "114"]
[EventDate "2022.09.29"]
[EventType "swiss"]
[SourceTitle "playchess.com"]
[Source "ChessBase"]
[SourceQuality "1"]
[TimeControl "5400+30"]

1. e4 {[%emt 0:00:30]} b6 {[%emt 0:08:17]} 2. Nf3 {[%emt 0:03:06]} Bb7 {[%emt 0:00:23]} 3. Nc3 {[%emt 0:00:13]} Nf6 {[%emt 0:00:56]} 4. e5 {[%emt 0:00:29]} Nd5 {[%emt 0:00:26]} 5. Nxd5 {[%emt 0:02:09]} Bxd5 {[%emt 0:00:04]} 6. c4 {[%emt 0:00:42]} Bb7 {[%emt 0:00:27]} 7. d4 {[%emt 0:00:12]} e6 {[%emt 0:00:21]} 8. Bd3 {[%emt 0:01:01]} c5 {[%emt 0:01:09]} 9. O-O {[%emt 0:03:24]} cxd4 {[%emt 0:00:35]} 10. Nxd4 {[%emt 0:00:49]} Nc6 {[%emt 0:07:25]} 11. Nf3 {[%emt 0:02:51]} Be7 {[%emt 0:02:25]} 12. a3 {[%emt 0:00:15]} f5 {[%emt 0:00:31]} 13. exf6 {[%emt 0:01:29]} Bxf6 {[%emt 0:00:03]} 14. Qc2 {[%emt 0:04:37]} h6 {[%emt 0:01:56]} 15. Bg6+ {[%emt 0:00:30]} Kf8 {[%emt 0:01:23]} 16. Re1 {[%emt 0:00:39]} Ne7 {[%emt 0:00:55]} 17. Be4 {[%emt 0:01:39]} Bxe4 {[%emt 0:00:50]} 18. Qxe4 {[%emt 0:00:32]} Nf5 {[%emt 0:03:44]} 19. Ne5 {[%emt 0:01:03]} Bxe5 {[%emt 0:00:45]} 20. Qxe5 {[%emt 0:00:10]} Qf6 {[%emt 0:01:18]} 21. Qe4 {[%emt 0:03:09]} Kf7 {[%emt 0:01:20]} 22. Rb1 {[%emt 0:00:15]} Nd6 {[%emt 0:06:49]} 23. Qd3 {[%emt 0:00:15]} Qe7 {[%emt 0:03:49]} 24. Rd1 {[%emt 0:01:05]} Nf5 {[%emt 0:02:15]} 25. Qxd7 {[%emt 0:00:36]} Rhd8 {[%emt 0:00:04]} 26. Qxe7+ {[%emt 0:00:30]} Kxe7 {[%emt 0:00:49]} 27. Rxd8 {[%emt 0:01:07]} Rxd8 {[%emt 0:00:03]} 28. g3 {[%emt 0:01:16]} Nd4 {[%emt 0:02:02]} 29. Kg2 {[%emt 0:00:18]} Ne2 {[%emt 0:06:19]} 30. b3 {[%emt 0:00:39]} Nxc1 {[%emt 0:00:37]} 31. Rxc1 {[%emt 0:00:15]} Rd3 {[%emt 0:00:54]} 32. Rb1 {[%emt 0:00:11]} e5 {[%emt 0:04:20]} 33. Rb2 {[%emt 0:00:11]} e4 {[%emt 0:00:58]} 34. Kf1 {[%emt 0:00:19]} Ke6 {[%emt 0:00:32]} 35. Ke2 {[%emt 0:00:33]} Ke5 {[%emt 0:02:05]} 36. f4+ {[%emt 0:05:35]} Kf5 {[%emt 0:01:42]} 37. Kf2 {[%emt 0:01:56]} Kg4 {[%emt 0:01:27]} 38. h3+ {[%emt 0:01:11]} Kxh3 {[%emt 0:00:45]} 39. Re2 {[%emt 0:00:46]} Rf3+ {[%emt 0:01:14]} 40. Ke1 {[%emt 0:00:52]} e3 {[%emt 0:00:02]} 41. b4 {[%emt 0:01:36]} Rxg3 {[%emt 0:00:55]} 42. Kd1 {[%emt 0:01:19]} Kg4 {[%emt 0:00:22]} 43. Kc2 {[%emt 0:00:38]} Kxf4 {[%emt 0:00:23]} 44. Kd3 {[%emt 0:00:10]} Ke5 {[%emt 0:00:52]} 45. Rc2 {[%emt 0:01:13]} e2+ {[%emt 0:00:26]} 46. Kd2 {[%emt 0:00:36]} Rg2 {[%emt 0:00:43]} 47. Rc3 {[%emt 0:07:24]} Kd4 {[%emt 0:00:35]} 48. Rf3 {[%emt 0:00:30]} Kxc4 {[%emt 0:00:25]} 49. Rf7 {[%emt 0:00:41]} Kb5 {[%emt 0:00:56]} 50. Rxa7 {[%emt 0:00:38]} h5 {[%emt 0:00:24]} 51. Ra8 {[%emt 0:00:57]} h4 {[%emt 0:00:20]} 52. Ke1 {[%emt 0:00:23]} h3 {[%emt 0:00:24]} 53. Rh8 {[%emt 0:00:39]} h2 {[%emt 0:00:03]} 54. Kd2 {[%emt 0:00:25]} e1=Q+ {[%emt 0:00:30]} 55. Kxe1 {[%emt 0:01:12]} Rg1+ {[%emt 0:00:02]} 56. Kf2 {[%emt 0:00:28]} h1=Q {[%emt 0:00:27]} 57. Rxh1 {[%emt 0:00:13]} Rxh1 {[%emt 0:00:18]} 0-1

[Event "Asian Amateur-ch Open 2022"]
[Site "Muscat"]
[Date "2022.10.03"]
[Round "6.1"]
[White "Fooladi, Behrooz"]
[Black "Zahmati, Sobhan"]
[Result "0-1"]
[ECO "D31"]
[WhiteElo "1928"]
[BlackElo "1926"]
[Annotator "TA"]
[PlyCount "72"]
[EventDate "2022.09.29"]
[EventType "swiss"]
[SourceTitle "playchess.com"]
[Source "ChessBase"]
[SourceQuality "1"]
[TimeControl "5400+30"]

{[%evp 9,72,17,29,28,28,28,27,29,23,23,31,29,27,25,36,18,27,22,25,8,116,29,44,31,35,20,35,5,18,-17,-13,-81,-79,-74,-78,-70,-1,-1,0,0,-4,-8,-8,-12,0,0,0,-13,-8,-7,0,0,2,0,31,0,263,262,401,403,398,375,367,-472,-496]} 1. d4 {[%emt 0:00:09]} d5 {[%emt 0:00:13]} 2. c4 {[%emt 0:00:07]} e6 {[%emt 0:00:09]} 3. cxd5 {[%emt 0:00:16]} exd5 {[%emt 0:00:14]} 4. Nc3 {[%emt 0:00:04]} a6 {[%emt 0:01:05]} 5. Nf3 {[%emt 0:00:56]} c6 {[%emt 0:00:41]} 6. Bf4 {[%emt 0:01:04] D31: Queen's Gambit Declined: Semi-Slav without ...Nf6 (+ Marshall Gambit and Noteboom) and Exchange Variation lines without ...Nf6.} Nf6 {[%emt 0:02:19]} 7. e3 {[%emt 0:00:37]} Be7 {[%emt 0:02:06]} 8. h3 {[%emt 0:00:20] White has an edge.} O-O {[%emt 0:00:50]} 9. Bd3 {[%emt 0:00:07]} Re8 {[%emt 0:01:11]} 10. O-O {[%emt 0:00:14]} Nbd7 {[%emt 0:00:44]} 11. Qc2 {[%emt 0:00:11]} Nf8 {[%emt 0:04:06]} 12. Ne5 {[%emt 0:01:13]} Ne6 {[%emt 0:02:13]} 13. Bh2 {[%emt 0:00:25]} c5 {[%emt 0:09:20] [#]} 14. dxc5 $146 {[%emt 0:04:10]} ({Predecessor:} 14. Ne2 c4 15. Bf5 Nf8 16. Ng3 Bxf5 17. Qxf5 Ng6 18. f4 Bd6 19. Rae1 Qc8 20. Qc2 {0-1 (38) Cayon,O-Costianosky,R (2300) Salta 1992}) 14... Bxc5 {[%emt 0:08:41]} (14... Nxc5 15. Nf3 Be6) (14... Nxc5 $11 15. Nf3 Be6) 15. Ne2 {[%emt 0:02:48]} ({White should try} 15. Rad1 $16) 15... b5 {[%emt 0:19:56]} 16. Bf5 {[%emt 0:18:22] And now Bxe6 would win.} Bd6 {[%emt 0:06:05]} 17. Ng4 {[%emt 0:03:43]} Bxh2+ {[%emt 0:12:19]} 18. Kxh2 {[%emt 0:00:09]} (18. Nxh2 g6 19. Bxe6 fxe6 20. Rac1) 18... Nxg4+ {[%emt 0:12:08]} 19. hxg4 {[%emt 0:11:05]} g6 {[%emt 0:03:04]} 20. Bd3 {[%emt 0:11:16]} (20. Bxe6 $11 {remains equal.} Bxe6 21. f3) 20... Bd7 {[%emt 0:04:12]} 21. Kg1 {[%emt 0:08:21]} Qg5 {[%emt 0:00:51]} 22. Nc3 {[%emt 0:02:26]} Nc7 {[%emt 0:08:02]} ({Black should play} 22... Bc6 $15) 23. Be2 $11 {[%emt 0:11:44]} Bxg4 {[%emt 0:00:52]} 24. Bxg4 {[%emt 0:02:01]} Qxg4 {[%emt 0:00:03]} 25. Rad1 {[%emt 0:00:17]} Re5 {[%emt 0:00:59]} 26. Rd4 {[%emt 0:00:35]} Qh5 {[%emt 0:00:32]} 27. Rfd1 {[%emt 0:00:30]} Rae8 {[%emt 0:00:32]} 28. Qb3 {[%emt 0:04:14]} Rg5 {[%emt 0:00:29]} 29. Nxd5 {[%emt 0:02:22] [#]} Qf3 {[%emt 0:00:21][%csl Gg5][%cal Rf3g2] Inhibits Nf6+.} 30. Nf4 {[%emt 0:05:38] Threatening Rd8.} Ne6 $132 {[%emt 0:00:21][%mdl 2048] Prevents Rd8. Hoping for ...Nxf4. Black has counterplay} 31. Rd7 {[%emt 0:00:02]} Rf8 {[%emt 0:00:46]} 32. Kf1 {[%emt 0:01:19]} Qa8 {[%emt 0:00:32][%mdl 8192] [#]} (32... Qg4 $1 $11 {and Black stays safe.} 33. f3 Qg3 34. Rxf7 Rxf7 35. Qxe6 Kg7) 33. Nd5 $1 $18 {[%emt 0:00:53]} Nc5 {[%emt 0:00:26] [#]} (33... h5 $142) 34. Qc3 $1 {[%emt 0:00:27][%cal Rd5e7]} Rxd5 {[%emt 0:00:30]} 35. R7xd5 {[%emt 0:00:41]} Ne6 {[%emt 0:00:31]} 36. Rc1 $4 {[%emt 0:01:28][%mdl 8192]} Qxd5 {[%emt 0:00:01] Weighted Error Value: White=0.30/Black=0.30} 0-1